bitfinex-derivatives/quotes_ETHF0:USTF0_20250730
["timestamp","ask_amount","ask_price","bid_price","bid_amount"]
[1753894737227,43.2774,3793.6,3793.5,3.283]
[1753894739930,41.6417,3793.6,3793.5,3.3341]
[1753894740122,42.8974,3793.6,3793.5,3.3341]
[1753894741528,43.3912,3793.6,3793.5,3.3341]
[1753894741729,47.230288,3793.6,3793.5,3.3341]
[1753894741924,47.230288,3793.6,3793.4,3.2078]
[1753894742124,2.6616,3793.5,3793.4,3.73501]
[1753894742327,3.1554,3793.5,3793.4,3.2078]
[1753894742526,2.6616,3793.1,3793.0,7.03608]
[1753894742832,2.0943,3793.4,3793.3,3.82824]
[1753894743029,0.8386,3793.4,3793.3,3.82824]
[1753894743223,44.639088,3793.6,3793.5,1.84711]
[1753894743428,44.639088,3793.6,3793.5,3.82821]
[1753894743931,3.839088,3793.6,3793.5,3.82821]
[1753894747838,3.1554,3794.5,3794.4,0.915]
[1753894748134,3.1554,3794.5,3794.4,2.2737]
[1753894748441,43.9554,3794.5,3794.4,2.8961]
[1753894748640,43.9554,3794.5,3794.4,2.2737]
[1753894748837,43.9554,3794.5,3794.4,1.7127]
[1753894749032,2.0943,3794.5,3794.4,3.301]
[1753894749644,42.8943,3794.5,3794.4,3.301]
[1753894749943,2.0943,3794.5,3794.4,3.301]
[1753894750533,41.418,3794.7,3794.6,3.301]
[1753894750738,41.418,3794.7,3794.6,5.1501]
[1753894751045,2.0943,3794.7,3794.6,6.5088]
[1753894751946,1.4566,3795.0,3794.9,3.301]
[1753894752145,2.0943,3795.0,3794.9,3.301]
[1753894752344,3.1554,3795.0,3794.9,3.301]
[1753894753344,6.994488,3795.0,3794.9,1.3241]
[1753894753540,6.994488,3795.0,3794.9,0.7977]
[1753894753744,3.68244,3794.7,3794.6,5.5429]
[1753894753934,3.68244,3794.7,3794.6,3.2078]
[1753894754336,3.68244,3794.7,3794.6,4.5319]
[1753894754538,0.8386,3794.7,3794.6,6.5088]
[1753894754846,2.0943,3794.7,3794.6,6.5088]
[1753894755336,0.018,3795.3,3794.9,2.23253]
[1753894755536,0.018,3795.3,3795.2,7.03577]
[1753894755739,0.8566,3795.3,3795.2,6.5088]
[1753894755944,3.1734,3795.3,3795.2,5.3254]
[1753894756144,3.1734,3795.3,3795.2,4.9205]
[1753894756439,3.1734,3795.3,3795.2,4.5319]
[1753894756646,3.1734,3795.3,3795.2,5.4815]
[1753894757149,3.1734,3795.3,3795.2,6.1039]
[1753894757347,3.1734,3795.3,3795.2,4.9205]
[1753894757852,7.012488,3795.3,3795.2,4.9205]
[1753894758149,3.68241,3794.9,3794.8,3.2078]
[1753894759642,3.68241,3794.9,3794.8,4.0055]
[1753894759848,3.68241,3794.9,3794.8,3.2078]
[1753894760447,7.521498,3794.9,3794.8,3.2078]
[1753894761550,4.677688,3794.9,3794.8,5.8864]
[1753894761748,3.839088,3794.9,3794.8,6.5088]
[1753894761945,0.64572219,3794.9,3794.8,6.5088]
[1753894762853,2.05162219,3794.9,3794.8,6.5088]
[1753894763150,4.10492219,3794.9,3794.8,6.5088]
[1753894763852,4.10492219,3794.9,3794.8,24.6618]
[1753894765054,4.10492219,3794.9,3794.8,6.5088]
[1753894765351,4.10492219,3794.9,3794.8,3.2078]
[1753894766452,4.10492219,3794.9,3794.8,3.5964]
[1753894766955,4.10492219,3794.9,3794.8,4.1228]
[1753894767255,4.10492219,3794.9,3794.8,5.4815]
[1753894767649,4.10492219,3794.9,3794.8,6.1039]
[1753894768154,4.10492219,3794.9,3794.8,5.4815]
[1753894768953,4.10492219,3794.9,3794.8,3.2078]
[1753894769156,4.10492219,3794.9,3794.8,3.73483]
[1753894769754,4.10492219,3794.9,3794.8,3.2078]
[1753894770757,4.10492219,3794.9,3794.8,4.652]
[1753894770957,4.10492219,3794.9,3794.8,5.0611]
[1753894772154,4.10492219,3794.9,3794.8,5.6745]
[1753894772457,0.64572219,3794.9,3794.8,6.7276]
[1753894776259,1.53382219,3794.9,3794.8,6.7276]
[1753894776457,2.86792219,3794.9,3794.8,6.7276]
[1753894776758,4.31442219,3794.9,3794.8,6.7276]
[1753894776958,4.31442219,3794.9,3794.8,3.2078]
[1753894778660,4.31442219,3794.9,3794.8,5.6745]
[1753894778861,4.31442219,3794.9,3794.8,6.7276]
[1753894780163,4.31442219,3794.9,3794.8,5.0611]
[1753894781059,4.31442219,3794.9,3794.8,4.1897]
[1753894781267,4.31442219,3794.9,3794.8,6.7276]
[1753894781565,4.31442219,3794.9,3794.8,3.2078]
[1753894782962,4.31442219,3794.9,3794.8,6.7276]
[1753894783165,3.43542219,3794.9,3794.8,6.7276]
[1753894783367,1.53382219,3794.9,3794.8,6.7276]
[1753894783668,0.64572219,3794.9,3794.8,6.7276]
[1753894784656,0.879,3795.8,3795.7,0.5269]
[1753894784863,0.2,3795.9,3795.8,3.5018]
[1753894785067,3.8687,3795.9,3795.8,3.5018]
[1753894785262,44.6687,3795.9,3795.8,3.5018]
[1753894785566,44.6687,3795.9,3795.7,21.8777]
[1753894785861,3.6687,3795.8,3795.7,3.2078]
[1753894786063,4.1956,3795.7,3795.6,18.143]
[1753894786264,4.1956,3795.7,3795.3,0.52695]
[1753894786265,3.6687,3795.4,3795.3,2.79405]
[1753894786466,3.6687,3795.4,3795.3,22.16475]
[1753894787064,4.19566,3795.3,3795.2,4.0307]
[1753894787262,3.6687,3795.3,3795.2,21.7599]
[1753894787463,3.6687,3795.3,3795.2,24.8456]
[1753894787664,1.4556,3795.6,3795.5,1.92262]
[1753894787871,2.9992,3795.8,3795.7,2.794]
[1753894788171,0.8881,3795.8,3795.7,4.0217]
[1753894788566,0.2,3795.9,3795.8,3.4948]
[1753894789771,3.8687,3795.9,3795.8,1.8533]
[1753894789969,3.8687,3795.9,3795.8,2.8555]
[1753894790172,3.8687,3795.9,3795.8,3.4948]
[1753894790469,7.707788,3795.9,3795.8,3.4948]
[1753894791065,7.707788,3795.9,3795.8,2.4417]
[1753894791369,7.707788,3795.9,3795.8,3.081]
[1753894791570,7.707788,3795.9,3795.8,3.4948]
[1753894794767,4.039088,3795.9,3795.8,3.4948]
[1753894794967,2.528388,3795.9,3795.8,3.4948]
[1753894795966,3.974888,3795.9,3795.8,3.4948]
[1753894796271,2.528388,3795.9,3795.8,3.4948]
[1753894796876,0.736688,3795.9,3795.8,3.4948]
[1753894798062,0.736688,3795.9,3795.8,8.4948]
[1753894798370,2.9992,3796.9,3796.0,1.31714]
[1753894798572,44.4656,3796.9,3796.8,3.79965]
[1753894798872,44.4656,3796.9,3796.8,22.03115]
[1753894799174,3.6656,3796.9,3796.8,22.03115]
[1753894800169,0.6646,3796.9,3796.8,22.06455]
[1753894800370,2.863,3797.3,3797.2,0.7187]
[1753894800568,2.863,3797.3,3797.2,22.0645]
[1753894801173,3.5294,3797.3,3797.2,3.2078]
[1753894801374,3.5294,3797.3,3797.2,21.5024]
[1753894801568,6.702088,3797.3,3797.2,21.5358]
[1753894801971,7.368488,3797.3,3797.2,21.5358]
[1753894802683,7.368488,3797.3,3797.2,21.3438]
[1753894803074,7.368488,3797.3,3797.2,21.4623]
[1753894803373,7.368488,3797.3,3797.2,21.3438]
[1753894804076,6.702088,3797.3,3797.2,21.5358]
[1753894804381,7.368488,3797.3,3797.2,21.5358]
[1753894804880,7.368488,3797.3,3797.2,21.5024]
[1753894805376,7.895168,3797.3,3797.2,21.3438]
[1753894805778,7.895168,3797.3,3797.2,3.2078]
[1753894806074,1.31694,3796.7,3796.2,3.2078]
[1753894806372,3.5294,3796.3,3796.2,4.90054]
[1753894806574,3.5294,3796.3,3796.2,23.12044]
[1753894806877,3.5294,3796.3,3796.2,22.5602]
[1753894807078,3.5294,3796.3,3796.2,21.3408]
[1753894809178,3.5294,3796.3,3796.2,22.5936]
[1753894809381,0.52678,3796.6,3796.3,0.6728]
[1753894809574,3.41828,3796.6,3796.5,1.2194]
[1753894809969,3.5294,3796.9,3796.8,1.74615]
[1753894810181,2.863,3796.9,3796.8,23.11935]
[1753894810773,3.5294,3796.9,3796.8,23.11935]
[1753894811479,7.368488,3796.9,3796.8,23.11935]
[1753894812084,7.368488,3796.9,3796.8,23.08595]
[1753894812679,7.368488,3796.9,3796.8,21.86655]
[1753894814280,7.368488,3796.9,3796.8,22.99235]
[1753894815482,7.368488,3796.9,3796.8,23.08595]
[1753894815677,7.368488,3796.9,3796.8,23.11935]
[1753894816475,6.702088,3796.9,3796.8,23.11935]
[1753894817070,7.368488,3796.9,3796.8,22.4656]
[1753894817277,7.368488,3796.9,3796.8,21.3398]
[1753894817778,4.890388,3796.9,3796.8,21.3398]
[1753894818079,7.368488,3796.9,3796.8,22.5926]
[1753894818477,6.702088,3796.9,3796.8,22.5926]
[1753894820178,3.839088,3796.9,3796.8,22.5926]
[1753894820376,3.839088,3796.9,3796.8,22.6177]
[1753894820678,2.574288,3796.9,3796.8,27.6177]
[1753894821582,2.574288,3796.9,3796.8,22.6177]
[1753894822378,2.574288,3796.9,3796.8,22.5926]
[1753894822682,6.103688,3796.9,3796.8,22.5926]
[1753894823686,5.437288,3796.9,3796.8,22.5926]
[1753894824184,3.212188,3796.9,3796.8,22.5926]
[1753894824979,4.468788,3796.9,3796.8,22.5926]
[1753894825183,6.103688,3796.9,3796.8,21.3368]
[1753894826585,6.103688,3796.9,3796.8,21.4119]
[1753894826784,3.212188,3796.9,3796.8,21.4119]
[1753894826985,2.574288,3796.9,3796.8,21.4119]
[1753894828185,6.103688,3796.9,3796.8,21.4119]
[1753894828589,6.103688,3796.9,3796.8,21.4292]
[1753894828885,6.103688,3796.9,3796.8,3.2078]
[1753894829081,6.103688,3796.9,3796.8,21.3358]
[1753894831082,6.103688,3796.9,3796.8,21.4155]
[1753894831784,3.666088,3796.9,3796.8,21.4089]
[1753894831989,6.234688,3796.9,3796.8,21.4545]
[1753894832487,6.234688,3796.9,3796.8,21.4155]
[1753894832691,3.212188,3796.9,3796.8,21.4545]
[1753894832888,3.212188,3796.9,3796.8,21.4586]
[1753894833291,2.574288,3796.9,3796.8,21.4586]
[1753894833785,3.213388,3796.9,3796.8,21.4586]
[1753894833987,3.213388,3796.9,3796.8,3.3306]
[1753894834183,3.213388,3796.9,3796.8,21.4586]
[1753894837585,3.213388,3796.9,3796.8,21.4545]
[1753894838090,4.105788,3796.9,3796.8,21.4545]
[1753894838286,4.559688,3796.9,3796.8,21.4545]
[1753894838490,6.235888,3796.9,3796.8,21.4545]
[1753894838892,2.574288,3796.9,3796.8,21.4545]
[1753894839092,3.213388,3796.9,3796.8,21.4545]
[1753894839693,4.105788,3796.9,3796.8,21.4545]
[1753894841096,6.235888,3796.9,3796.8,21.4545]
[1753894842498,6.235888,3796.9,3796.8,21.3358]
[1753894844097,0.6391,3797.5,3797.4,0.64537]
[1753894844294,0.6391,3797.5,3797.4,21.97917]
[1753894844999,1.5315,3797.5,3797.4,21.97917]
[1753894845200,1.9854,3797.5,3797.4,21.97917]
[1753894846701,3.0396,3797.5,3797.4,21.97917]
[1753894846901,3.6616,3797.5,3797.4,21.97917]
[1753894847303,7.500688,3797.5,3797.4,21.97917]
[1753894849206,0.2,3797.9,3797.4,21.97917]
[1753894849207,0.2,3797.9,3797.8,0.56561]
[1753894849403,3.8616,3797.9,3797.8,21.92081]
[1753894849605,3.8616,3797.9,3797.8,21.95981]
[1753894850103,0.8391,3797.9,3797.8,21.96081]
[1753894851099,1.7996,3798.2,3798.1,0.58897]
[1753894851304,1.7996,3798.2,3798.1,18.75497]
[1753894851305,3.6616,3798.2,3798.1,18.75497]
[1753894852004,0.018,3798.3,3798.1,18.75497]
[1753894852305,3.6796,3798.3,3798.2,3.3092]
[1753894853401,2.4567,3798.3,3798.2,3.5151]
[1753894853598,5.842488,3798.3,3798.2,3.5151]
[1753894853907,4.496188,3798.3,3798.2,3.5641]
[1753894854106,1.5292,3799.7,3799.1,1.31605]
[1753894854300,0.9072,3799.8,3799.7,0.52633]
[1753894854505,1.5081,3799.8,3799.7,1.21623]
[1753894854805,42.9301,3799.8,3799.7,0.52633]
[1753894855009,43.8225,3799.8,3799.7,0.52633]
[1753894855305,18.126,3801.1,3799.7,0.52633]
[1753894855306,3.0405,3801.3,3801.2,0.52614]
[1753894855504,3.0405,3801.3,3801.2,22.02894]
[1753894856199,3.6796,3801.3,3801.2,22.02894]
[1753894856399,3.6796,3801.3,3801.2,3.2078]
[1753894856604,3.6796,3801.3,3801.2,15.9349]
[1753894856605,7.69132,3801.3,3801.2,15.9349]
[1753894856799,1.5081,3800.7,3800.6,3.2078]
[1753894857004,2.1472,3800.7,3800.6,21.5068]
[1753894857207,3.6104,3800.7,3800.6,21.5068]
[1753894858007,0.9072,3799.9,3799.8,0.97083]
[1753894858312,1.5292,3799.9,3799.8,25.63933]
[1753894859309,1.7488,3799.9,3799.8,25.88253]
[1753894859505,1.886,3799.9,3799.8,25.88253]
[1753894859706,2.6092,3799.9,3799.8,21.5018]
[1753894860106,1.886,3799.9,3799.8,25.6157]
[1753894860313,5.368288,3799.9,3799.8,25.6157]
[1753894860503,3.839088,3799.9,3799.8,25.6157]
[1753894861408,1.1838,3801.1,3801.0,0.672]
[1753894861606,1.7063,3801.1,3801.0,24.9377]
[1753894861808,1.7063,3801.1,3801.0,25.6097]
[1753894862304,1.9259,3801.1,3801.0,25.6097]
[1753894862504,1.6849,3801.2,3801.1,1.90035]
[1753894862711,2.7863,3801.2,3801.1,3.39665]
[1753894862909,0.02902195,3801.3,3801.2,3.6153]
[1753894863113,0.02902195,3801.3,3801.2,22.3999]
[1753894863613,0.2,3801.9,3801.8,2.20275]
[1753894863915,0.2,3801.9,3801.8,26.14375]
[1753894864407,3.0618,3801.9,3801.8,3.2078]
[1753894864607,3.58784,3801.9,3801.8,21.4998]
[1753894864802,3.58784,3801.9,3801.8,3.2078]
[1753894865010,1.2302,3801.3,3801.2,3.73393]
[1753894865211,2.8618,3801.3,3801.2,21.5088]
[1753894865515,2.8618,3801.3,3801.2,21.5098]
[1753894865714,2.1386,3801.3,3801.2,23.2097]
[1753894865915,2.8618,3801.3,3801.2,3.2078]
[1753894866116,2.8618,3801.3,3801.2,21.5088]
[1753894867116,0.4929,3801.3,3801.2,24.8854]
[1753894867306,1.7063,3801.6,3801.5,1.6767]
[1753894867510,1.7063,3801.6,3801.5,22.4109]
[1753894867716,2.49838,3801.6,3801.5,21.6736]
[1753894867916,3.38788,3801.6,3801.5,0.672]
[1753894868217,2.8618,3801.3,3801.2,5.5797]
[1753894868408,2.8618,3801.3,3801.2,18.296]
[1753894870318,6.700888,3801.3,3801.2,18.296]
[1753894871320,6.700888,3801.3,3801.2,21.5038]
[1753894871516,6.700888,3801.3,3801.2,18.296]
[1753894871920,6.700888,3801.3,3801.2,19.9657]
[1753894872317,6.700888,3801.3,3801.2,24.3743]
[1753894872523,5.811388,3801.3,3801.2,25.6177]
[1753894873321,5.977688,3801.3,3801.2,25.6177]
[1753894874225,5.977688,3801.3,3801.2,21.5038]
[1753894874524,1.3965,3801.1,3801.0,37.902]
[1753894874721,0.266,3800.9,3800.8,3.2078]
[1753894875026,2.8618,3800.9,3800.8,21.4918]
[1753894875323,5.977688,3800.9,3800.8,21.9904]
[1753894875622,5.977688,3800.9,3800.8,24.8684]
[1753894876219,6.700888,3800.9,3800.8,24.8684]
[1753894876825,6.700888,3800.9,3800.8,24.3623]
[1753894878635,6.700888,3800.9,3800.8,24.8684]
[1753894878830,3.839088,3800.9,3800.8,25.6057]
[1753894880427,0.7421,3801.8,3800.9,1.31546]
[1753894880632,2.4295,3801.8,3801.7,4.90447]
[1753894880832,2.4295,3801.8,3801.7,23.17347]
[1753894881032,2.4295,3801.8,3801.7,23.87567]
[1753894881234,2.4295,3801.8,3801.7,24.87337]
[1753894881433,1.6874,3801.8,3801.7,24.87337]
[1753894881935,3.9677,3801.8,3801.7,24.17117]
[1753894882727,3.9677,3801.8,3801.7,18.268]
[1753894883127,2.3921,3801.6,3801.4,0.5261]
[1753894883332,3.9677,3801.6,3801.5,18.268]
[1753894884837,0.5261,3801.5,3801.3,0.9977]
[1753894885038,3.9677,3801.3,3801.2,3.2078]
[1753894885340,3.9677,3801.3,3801.2,21.99494]
[1753894885534,3.9677,3801.3,3801.2,24.16324]
[1753894885734,1.6874,3801.3,3801.2,24.86544]
[1753894885935,1.2161,3801.3,3801.2,24.86544]
[1753894886236,0.4929,3801.3,3801.2,24.86544]
[1753894886540,3.839088,3801.4,3801.3,2.8705]
[1753894888542,3.839088,3801.4,3801.3,3.0312]
[1753894889137,3.307678,3801.4,3801.3,3.0312]
[1753894889339,0.2,3801.9,3801.8,2.63825]
[1753894889539,3.2078,3802.9,3801.9,1.31511]
[1753894889745,3.1767,3802.6,3802.4,3.2078]
[1753894889937,3.1767,3802.6,3802.5,18.255]
[1753894889938,4.1644,3802.6,3802.5,18.255]
[1753894890137,3.1767,3802.6,3802.5,17.4634]
[1753894890339,4.1644,3802.6,3802.5,17.4634]
[1753894890539,44.9644,3802.6,3802.5,19.1447]
[1753894891342,40.8,3802.6,3802.5,18.1188]
[1753894891541,40.8,3802.6,3802.5,20.9043]
[1753894891542,41.558,3802.6,3802.5,20.9043]
[1753894891742,2.4994,3802.6,3802.5,20.9043]
[1753894891945,3.2078,3803.3,3802.6,2.4263]
[1753894891946,0.9877,3802.8,3802.6,2.4263]
[1753894892135,1.6884,3802.5,3802.4,5.41506]
[1753894892343,4.1644,3802.5,3802.4,23.71706]
[1753894892742,4.1644,3802.5,3802.4,24.97576]
[1753894892942,4.1644,3802.5,3802.4,25.47666]
[1753894893137,4.1644,3802.5,3802.4,23.1911]
[1753894893447,4.1644,3802.5,3802.4,24.9507]
[1753894893647,3.1767,3802.5,3802.4,24.9507]
[1753894893842,1.7691,3802.5,3802.4,24.9507]
[1753894894048,3.839088,3802.6,3802.5,2.19596]
[1753894894243,3.839088,3802.6,3802.5,4.74926]
[1753894895049,6.338488,3802.6,3802.5,3.96686]
[1753894895243,4.1644,3803.6,3803.5,2.20711]
[1753894895444,4.1644,3803.6,3803.5,22.26071]
[1753894895741,2.9568,3803.9,3803.8,1.18118]
[1753894895947,1.9691,3803.9,3803.8,22.30868]
[1753894896347,1.9691,3803.9,3803.8,25.51648]
[1753894896546,0.2,3803.9,3803.8,26.29888]
[1753894897647,1e-05,3803.9,3803.8,26.29888]
[1753894897846,0.018,3804.3,3804.2,4.74902]
[1753894898045,0.018,3804.3,3804.2,26.30482]
[1753894898242,0.018,3804.3,3804.2,31.30482]
[1753894900554,1.7691,3805.4,3805.3,2.195]
[1753894900753,1.7691,3805.4,3805.3,24.9867]
[1753894901656,0.7144,3805.9,3805.8,3.9664]
[1753894901959,0.2,3805.9,3805.8,26.3096]
[1753894902150,3.3767,3805.9,3805.8,25.5272]
[1753894902350,4.3644,3805.9,3805.8,25.5272]
[1753894902557,0.2,3805.9,3805.8,26.3096]
[1753894902758,4.3644,3805.9,3805.8,21.5738]
[1753894903147,2.6761,3805.6,3805.5,3.2078]
[1753894903348,4.1644,3805.6,3805.4,0.52554]
[1753894903552,2.6761,3805.6,3805.5,25.0167]
[1753894903847,2.6761,3805.6,3805.5,24.2717]
[1753894904153,4.1644,3805.6,3805.5,24.2717]
[1753894904360,2.4994,3805.6,3805.5,25.0167]
[1753894904556,1.9691,3805.9,3805.8,3.4409]
[1753894904754,1.9691,3805.9,3805.8,22.5903]
[1753894904957,1.9691,3805.9,3805.8,21.8079]
[1753894905259,4.3644,3805.9,3805.8,21.8079]
[1753894907057,4.3644,3805.9,3805.8,20.562]
[1753894907258,3.3767,3805.9,3805.8,21.8079]
[1753894907457,1.9691,3805.9,3805.8,22.5903]
[1753894907760,0.2,3805.9,3805.8,21.8079]
[1753894908060,0.2,3805.9,3805.8,22.5903]
[1753894910059,4.3644,3805.9,3805.8,19.0224]
[1753894910259,1.8884,3805.9,3805.8,18.345]
[1753894910658,1.8884,3805.9,3805.8,17.064]
[1753894910953,3.3767,3805.9,3805.8,17.064]
[1753894911160,3.3767,3805.9,3805.8,19.259]
[1753894911358,3.3767,3805.9,3805.8,18.7453]
[1753894911559,0.52551,3805.8,3805.6,18.35]
[1753894911762,2.4994,3805.6,3805.5,21.5668]
[1753894912258,43.2994,3805.6,3805.5,21.5668]
[1753894913457,43.2994,3805.6,3805.5,3.2078]
[1753894917952,1.4883,3805.5,3805.4,0.52554]
[1753894918158,2.4994,3805.5,3805.4,0.52554]
[1753894918362,1.0111,3805.5,3805.4,0.52554]
[1753894918565,7.7951,3805.5,3805.4,0.52554]
[1753894918760,2.7951,3805.5,3805.4,0.52554]
[1753894918970,2.4994,3805.5,3805.4,4.19714]
[1753894919354,1.5063,3805.9,3805.8,2.2881]
[1753894919559,2.8045,3805.9,3805.8,4.1971]
[1753894919865,43.6045,3805.9,3805.8,4.1971]
[1753894920458,43.7182,3805.9,3805.8,3.3897]
[1753894920862,43.7182,3805.9,3805.8,4.1971]
[1753894920863,43.6045,3805.9,3805.8,4.1971]
[1753894921164,2.8045,3805.9,3805.8,4.1971]
[1753894922066,2.9803,3805.9,3805.8,4.1971]
[1753894922267,3.0902,3805.9,3805.8,0.5255]
[1753894922666,3.0902,3805.9,3805.8,2.3015]
[1753894922863,3.0902,3805.9,3805.8,6.8524]
[1753894923063,3.0902,3805.9,3805.8,7.4049]
[1753894923871,3.0902,3805.9,3805.8,2.8372]
[1753894924278,2.8902,3805.7,3805.4,18.32]
[1753894924472,1.2133,3805.5,3805.4,18.32]
[1753894924973,2.8902,3805.5,3805.4,18.32]
[1753894925172,2.8902,3805.3,3805.2,0.52557]
[1753894925568,2.8902,3805.3,3805.2,1.62717]
[1753894925773,2.6045,3805.3,3805.2,4.19717]
[1753894925966,0.1099,3805.8,3805.2,4.19717]
[1753894926172,0.9886,3805.9,3805.8,3.6716]
[1753894926373,1.5063,3805.9,3805.8,7.6421]
[1753894926573,2.8045,3805.9,3805.8,6.8794]
[1753894926971,3.0902,3805.9,3805.7,18.85152]
[1753894927170,2.8902,3805.8,3805.7,0.52552]
[1753894927475,3.41572,3805.7,3805.6,0.52552]
[1753894927669,2.8902,3805.7,3805.6,0.52552]
[1753894928374,2.8902,3805.7,3805.6,1.62712]
[1753894928775,2.8902,3805.7,3805.6,0.52552]
[1753894928974,2.63737,3805.4,3805.3,0.52557]
[1753894929171,1.73888,3805.3,3805.2,0.52558]
[1753894929475,0.2,3805.9,3805.8,4.4343]
[1753894929770,0.2,3805.9,3805.8,6.8794]
[1753894929771,21.4322,3805.9,3805.8,6.8794]
[1753894930076,21.4322,3805.9,3805.8,1.776]
[1753894930277,21.4322,3805.9,3805.8,2.3117]
[1753894930471,2.9803,3805.9,3805.8,3.6716]
[1753894930671,21.3433,3805.9,3805.8,3.6716]
[1753894931477,21.4532,3805.9,3805.8,3.6716]
[1753894932178,2.8902,3805.8,3805.7,0.52551]
[1753894932672,21.2582,3805.8,3805.7,1.62711]
[1753894933377,21.2582,3805.8,3805.7,0.52551]
[1753894935276,21.26343443,3805.8,3805.7,0.52551]
[1753894937883,1.3232,3805.7,3805.6,0.52552]
[1753894938079,2.8902,3805.7,3805.6,0.52552]
[1753894938278,43.6902,3805.7,3805.6,0.52552]
[1753894938678,43.5803,3805.7,3805.6,4.19712]
[1753894938977,20.1691,3805.7,3805.6,4.95982]
[1753894939180,20.9475,3805.7,3805.6,4.19712]
[1753894939572,20.9475,3805.7,3805.6,0.52552]
[1753894939573,43.6902,3805.7,3805.6,0.52552]
[1753894939773,62.0312,3805.7,3805.6,0.52552]
[1753894941078,1.567,3805.6,3805.5,0.52554]
[1753894941273,60.87983,3805.7,3805.3,0.52556]
[1753894941274,1.2133,3805.4,3805.3,0.52556]
[1753894941484,3.41577,3805.3,3805.2,0.52558]
[1753894941678,44.21577,3805.3,3805.2,0.52558]
[1753894941878,43.6902,3805.3,3805.2,0.52558]
[1753894942080,60.9701,3805.3,3805.2,4.19718]
[1753894942482,61.7485,3805.3,3805.2,4.19718]
[1753894942779,61.8584,3805.3,3805.2,4.19718]
[1753894942992,61.8584,3805.3,3805.2,0.52558]
[1753894943173,2.8902,3804.9,3804.8,3.2078]
[1753894943477,21.2342,3804.9,3804.8,3.73344]
[1753894943880,21.2342,3804.9,3804.8,0.52564]
[1753894944478,0.52564,3804.8,3804.7,0.52565]
[1753894944674,3.41584,3804.8,3804.7,0.52565]
[1753894944876,0.52567,3804.6,3804.5,1.1016]
[1753894945079,2.8902,3804.5,3804.4,3.73349]
[1753894945680,2.8902,3804.5,3804.4,4.83509]
[1753894945988,2.8902,3804.2,3804.1,0.52573]
[1753894946186,21.2292,3804.2,3804.1,1.1016]
[1753894946387,62.0292,3804.2,3804.1,1.1016]
[1753894946687,62.0292,3804.2,3804.1,1.776]
[1753894946987,62.0292,3804.2,3804.1,3.6716]
[1753894947184,61.7495,3804.2,3804.1,3.6716]
[1753894947384,61.7495,3804.2,3804.1,4.4343]
[1753894947683,61.7495,3804.2,3804.1,3.6716]
[1753894948282,4.2453,3805.2,3805.1,0.5256]
[1753894948492,4.2453,3805.2,3805.1,4.1972]
[1753894948493,23.3829,3805.2,3805.1,4.1972]
[1753894948679,24.1237,3805.2,3805.1,4.1972]
[1753894949082,24.1227,3805.2,3805.1,4.1972]
[1753894949387,24.1227,3805.2,3805.1,3.6716]
[1753894949588,5.9505,3805.2,3805.1,3.6716]
[1753894949791,24.2985,3805.2,3805.1,3.6716]
[1753894949985,5.0339,3805.2,3805.1,3.6716]
[1753894950189,5.0339,3805.2,3805.1,4.4849]
[1753894950383,23.3759,3805.2,3805.1,4.4849]
[1753894950578,23.3769,3805.2,3805.1,4.4849]
[1753894950889,24.314,3805.2,3805.1,2.3196]
[1753894951284,24.314,3805.2,3805.1,1.1016]
[1753894951988,0.5256,3805.1,3804.9,0.52562]
[1753894952191,21.0821,3805.0,3804.9,2.73572]
[1753894952488,21.0821,3805.0,3804.9,3.99232]
[1753894952786,21.0066,3805.0,3804.9,3.99232]
[1753894953082,21.0821,3805.0,3804.9,1.6992]
[1753894953289,2.6646,3804.4,3804.3,2.2101]
[1753894953491,21.0056,3804.4,3804.3,3.99241]
[1753894953788,20.144,3804.4,3804.3,3.99241]
[1753894954083,3.1902,3805.1,3805.0,3.4667]
[1753894954288,21.5252,3805.1,3805.0,3.4667]
[1753894954492,3.2657,3805.1,3805.0,3.4667]
[1753894954889,21.5987,3805.1,3805.0,3.4667]
[1753894955087,3.1902,3805.1,3805.0,3.4667]
[1753894955690,21.5202,3805.1,3805.0,3.4667]
[1753894956086,3.1902,3805.1,3805.0,3.4667]
[1753894956781,21.5142,3805.1,3805.0,3.4667]
[1753894957192,3.1902,3805.1,3805.0,3.4667]
[1753894957385,21.5102,3805.1,3805.0,3.4667]
[1753894957691,3.1902,3805.1,3805.0,3.4667]
[1753894957893,21.5082,3805.1,3805.0,3.4667]
[1753894958283,21.5072,3805.1,3805.0,3.4667]
[1753894958593,21.5062,3805.1,3805.0,3.4667]
[1753894959087,3.2078,3805.2,3805.1,1.7436]
[1753894959291,22.28,3805.2,3805.1,4.8056]
[1753894959492,22.8254,3805.2,3805.1,4.28]
[1753894959688,24.0696,3805.2,3805.1,4.28]
[1753894959889,24.0696,3805.2,3805.1,3.4667]
[1753894960492,5.7516,3805.2,3805.1,3.4667]
[1753894960682,24.0636,3805.2,3805.1,3.4667]
[1753894960883,1.07094,3805.6,3805.5,1.7492]
[1753894961193,19.6116,3805.6,3805.5,4.80553]
[1753894961388,60.4116,3805.6,3805.5,4.80553]
[1753894961894,42.0996,3805.6,3805.5,4.80553]
[1753894962093,60.4076,3805.6,3805.5,4.80553]
[1753894962489,59.108,3805.6,3805.5,4.80553]
[1753894962892,59.8622,3805.6,3805.5,4.80553]
[1753894963294,59.8622,3805.6,3805.5,4.28]